bitfinex/quotes_BTCUSD_20240826
["timestamp","ask_amount","ask_price","bid_price","bid_amount"]
[1724700497092,0.001826,63631.0,63630.0,1.227109]
[1724700498504,0.001826,63631.0,63630.0,1.541426]
[1724700501349,0.001826,63631.0,63630.0,1.227109]
[1724700501554,0.142826,63631.0,63630.0,1.227109]
[1724700502161,0.141826,63631.0,63630.0,1.214109]
[1724700502504,0.142826,63631.0,63630.0,1.224109]
[1724700502747,0.142826,63631.0,63630.0,1.214109]
[1724700503114,0.143826,63631.0,63630.0,1.208109]
[1724700504648,0.143826,63631.0,63630.0,1.221109]
[1724700505067,0.002826,63631.0,63630.0,1.221109]
[1724700505266,0.002826,63631.0,63630.0,1.208109]
[1724700505484,0.002826,63631.0,63630.0,1.219109]
[1724700508218,0.002826,63631.0,63630.0,1.533426]
[1724700509314,0.002826,63631.0,63630.0,1.219109]
[1724700509921,0.002826,63631.0,63630.0,1.533426]
[1724700510124,0.002826,63631.0,63630.0,1.219109]
[1724700510321,0.002826,63631.0,63630.0,1.533426]
[1724700511689,0.002826,63631.0,63630.0,1.219109]
[1724700515566,0.002826,63631.0,63630.0,1.2200154]
[1724700518001,0.141526,63631.0,63630.0,1.2200154]
[1724700518545,0.141526,63631.0,63630.0,0.9056984]
[1724700518954,0.141526,63631.0,63630.0,0.8056984]
[1724700519775,1.08348401,63631.0,63630.0,0.0199064]
[1724700519975,1.15339145,63631.0,63630.0,0.0199064]
[1724700520316,0.79217201,63631.0,63630.0,0.0199064]
[1724700521079,0.79217201,63631.0,63630.0,0.0089064]
[1724700521355,0.79217201,63631.0,63630.0,0.0139064]
[1724700521863,0.79117201,63631.0,63630.0,0.0089064]
[1724700522098,0.79017201,63631.0,63630.0,0.0009064]
[1724700522293,0.80617201,63631.0,63630.0,0.0029064]
[1724700522496,0.79417201,63631.0,63630.0,0.0019064]
[1724700522697,0.79017201,63631.0,63630.0,0.0009064]
[1724700522966,0.79817201,63631.0,63630.0,0.0019064]
[1724700523224,0.80217201,63631.0,63630.0,0.0019064]
[1724700526697,0.48786001,63631.0,63630.0,0.0019064]
[1724700526898,0.80217201,63631.0,63630.0,0.0019064]
[1724700528007,0.48786001,63631.0,63630.0,0.0019064]
[1724700529607,0.48767086,63631.0,63630.0,0.0019064]
[1724700533880,0.30751486,63631.0,63630.0,0.0019064]
[1724700534083,0.01263685,63631.0,63630.0,1.1020154]
[1724700534259,0.01263685,63631.0,63630.0,1.21143649]
[1724700534659,0.01263685,63631.0,63630.0,1.1020154]
[1724700535199,0.00863685,63631.0,63630.0,1.35263649]
[1724700535789,0.00063685,63631.0,63630.0,1.35163649]
[1724700536250,0.00463685,63631.0,63630.0,1.2422154]
[1724700536458,0.00463685,63631.0,63630.0,1.5565324]
[1724700536665,0.00463685,63631.0,63630.0,1.81271041]
[1724700537560,0.00063685,63631.0,63630.0,1.81271041]
[1724700537761,0.00163685,63631.0,63630.0,1.83471041]
[1724700538165,0.00163685,63631.0,63630.0,1.82371041]
[1724700538577,0.00163685,63631.0,63630.0,1.83771041]
[1724700539393,0.00163685,63631.0,63630.0,2.15202741]
[1724700540333,0.00163685,63631.0,63630.0,1.83771041]
[1724700542461,0.00163685,63631.0,63630.0,1.6815324]
[1724700550159,0.00163685,63631.0,63630.0,1.2260154]
[1724700552909,0.00163685,63631.0,63630.0,0.9116984]
[1724700553478,0.00163685,63631.0,63630.0,1.2260154]
[1724700561312,0.00163685,63631.0,63630.0,0.0259064]
[1724700561313,0.45697086,63631.0,63630.0,0.0259064]
[1724700561543,0.29981486,63631.0,63630.0,0.0259064]
[1724700561751,0.29981486,63631.0,63630.0,0.1830644]
[1724700561952,0.29981486,63631.0,63630.0,0.0259064]
[1724700562641,0.29881486,63631.0,63630.0,0.0149064]
[1724700562892,0.29881486,63631.0,63630.0,0.0199064]
[1724700563686,0.29881486,63631.0,63630.0,0.0059064]
[1724700564206,0.29881486,63631.0,63630.0,0.0139064]
[1724700564948,0.29881486,63631.0,63630.0,0.1710644]
[1724700565598,0.29881486,63631.0,63630.0,0.0139064]
[1724700568237,0.29881486,63631.0,63630.0,0.1710644]
[1724700568491,0.29881486,63631.0,63630.0,0.0139064]
[1724700570103,0.29881486,63631.0,63630.0,0.4853814]
[1724700570308,0.29881486,63631.0,63630.0,0.1710644]
[1724700570480,0.29881486,63631.0,63630.0,0.4853814]
[1724700574347,0.29881486,63631.0,63630.0,0.7996984]
[1724700578451,0.00063685,63631.0,63630.0,0.7996984]
[1724700581507,0.00063685,63631.0,63630.0,0.4853814]
[1724700581883,0.00063685,63631.0,63630.0,0.7996984]
[1724700582679,0.00063685,63631.0,63630.0,0.4853814]
[1724700583779,0.00063685,63631.0,63630.0,0.7996984]
[1724700584002,0.00063685,63631.0,63630.0,0.4853814]
[1724700585772,0.30511486,63631.0,63630.0,0.0139064]
[1724700586399,0.77658286,63631.0,63630.0,0.0139064]
[1724700586881,0.77658286,63631.0,63630.0,0.0009064]
[1724700587046,0.46727086,63631.0,63630.0,0.0009064]
[1724700587693,0.47227086,63631.0,63630.0,0.0009064]
[1724700588186,0.47327086,63631.0,63630.0,0.0009064]
[1724700588595,0.47227086,63631.0,63630.0,0.0009064]
[1724700588803,0.78758286,63631.0,63630.0,0.0009064]
[1724700589062,0.47327086,63631.0,63630.0,0.0009064]
[1724700589841,0.31611486,63631.0,63630.0,0.0009064]
[1724700590039,0.47327086,63631.0,63630.0,0.0009064]
[1724700595040,0.31611486,63631.0,63630.0,0.0009064]
[1724700596031,0.47327086,63631.0,63630.0,0.0009064]
[1724700596364,0.16781486,63631.0,63630.0,0.1580644]
[1724700597179,0.32497086,63631.0,63630.0,0.0009064]
[1724700597584,0.40717086,63631.0,63630.0,0.0009064]
[1724700598021,0.25001486,63631.0,63630.0,0.0009064]
[1724700598429,0.25001486,63631.0,63630.0,0.1580644]
[1724700598635,0.25001486,63631.0,63630.0,0.0009064]
[1724700599225,0.31341486,63631.0,63630.0,0.0009064]
[1724700599984,1.09919486,63631.0,63630.0,0.0009064]
[1724700600410,1.21641932,63631.0,63630.0,0.0009064]
[1724700600667,1.21599525,63631.0,63630.0,0.0009064]
[1724700600873,1.12219486,63631.0,63630.0,0.0009064]
[1724700601173,2.22307368,63631.0,63630.0,0.0009064]
[1724700601363,2.00876168,63631.0,63630.0,0.0009064]
[1724700601569,2.12026742,63631.0,63630.0,0.0009064]
[1724700601769,1.537318,63631.0,63630.0,0.0009064]
[1724700602003,1.54594845,63631.0,63630.0,0.0009064]
[1724700602209,1.54575959,63631.0,63630.0,0.0009064]
[1724700602414,1.54675959,63631.0,63630.0,0.0009064]
[1724700602633,0.314365,63621.0,63615.0,0.00018886]
[1724700602834,0.314365,63621.0,63614.0,0.1418]
[1724700602835,0.15617801,63621.0,63618.0,0.157187]
[1724700603054,0.15617801,63621.0,63619.0,0.0811]
[1724700603260,0.31336001,63621.0,63619.0,0.0811]
[1724700603673,0.15617801,63621.0,63619.0,0.0811]
[1724700603885,0.314366,63620.0,63614.0,0.217896]
[1724700604098,0.10944159,63615.0,63611.0,0.0013075]
[1724700604319,0.471609,63612.0,63611.0,0.0013075]
[1724700604526,1.0516346,63612.0,63611.0,0.0013075]
[1724700604729,0.94219301,63612.0,63611.0,0.0013075]
[1724700604943,1.082316,63612.0,63611.0,0.0013075]
[1724700605136,1.0746346,63612.0,63611.0,0.0013075]
[1724700605346,1.3890406,63612.0,63611.0,0.0013075]
[1724700605978,1.3960406,63612.0,63611.0,0.0023075]
[1724700606177,1.48969194,63612.0,63611.0,0.0023075]
[1724700606524,1.59475013,63612.0,63611.0,0.0023075]
[1724700606711,1.4767406,63612.0,63611.0,0.0023075]
[1724700606905,1.4907406,63612.0,63611.0,0.0033075]
[1724700607107,1.4837406,63612.0,63611.0,0.0023075]
[1724700607444,1.71478342,63612.0,63611.0,0.0033075]
[1724700607641,1.71478342,63612.0,63606.0,0.009075]
[1724700607642,0.86858614,63607.0,63606.0,0.009075]
[1724700607774,1.51473574,63607.0,63606.0,0.009075]
[1724700607974,2.09244704,63607.0,63606.0,0.009075]
[1724700608199,1.95216574,63607.0,63606.0,0.009075]
[1724700609178,1.96016574,63607.0,63606.0,0.010075]
[1724700609385,0.00181114,63595.0,63594.0,0.009331]
[1724700609586,1.98481597,63595.0,63594.0,0.009331]
[1724700609790,2.13592574,63595.0,63594.0,0.009331]
[1724700609996,2.26521301,63595.0,63594.0,0.009331]
[1724700610203,1.83499415,63595.0,63594.0,0.009331]
[1724700610600,1.52669301,63595.0,63594.0,0.010331]
[1724700611120,1.52669301,63595.0,63594.0,0.011331]
[1724700611121,1.81478019,63595.0,63594.0,0.011331]
[1724700611521,1.81478019,63595.0,63594.0,0.010331]
[1724700611522,1.80678019,63595.0,63594.0,0.010331]
[1724700612171,1.80678019,63595.0,63594.0,0.011331]
[1724700612172,1.81578019,63595.0,63594.0,0.011331]
[1724700612372,1.80178019,63595.0,63594.0,0.010331]
[1724700612768,1.81578019,63595.0,63594.0,0.010331]
[1724700613017,1.97191187,63595.0,63594.0,0.010331]
[1724700613479,1.81578019,63595.0,63594.0,0.010331]
[1724700617218,1.54169301,63595.0,63594.0,0.010331]
[1724700618377,1.30289301,63595.0,63594.0,0.010331]
[1724700618618,0.98840301,63595.0,63594.0,0.010331]
[1724700618890,0.65091301,63595.0,63594.0,0.153431]
[1724700619416,0.023,63595.0,63594.0,0.153431]
[1724700619654,0.023,63595.0,63594.0,0.310678]
[1724700619865,0.023,63595.0,63594.0,0.625173]
[1724700620312,0.023,63595.0,63594.0,0.938668]
[1724700620313,0.014,63595.0,63594.0,0.938668]
[1724700620789,0.0637,63617.0,63594.0,0.938668]
[1724700620790,0.0769,63627.0,63614.0,0.157197]
[1724700621020,0.0769,63627.0,63615.0,0.157194]
[1724700621021,0.62868187,63620.0,63615.0,0.157194]
[1724700621230,0.15617801,63619.0,63613.0,0.0751]
[1724700621454,0.15617801,63619.0,63603.0,0.314446]
[1724700621455,0.157201,63613.0,63608.0,0.240212]
[1724700621652,0.15617801,63612.0,63608.0,0.083]
[1724700621858,0.15721,63609.0,63608.0,0.083]
[1724700622067,0.15617801,63609.0,63604.0,0.083]
[1724700622329,0.065,63616.0,63604.0,0.083]
[1724700622330,0.47166,63605.0,63604.0,0.083]
[1724700622600,0.31339801,63605.0,63604.0,0.083]
[1724700622827,0.62783801,63605.0,63604.0,0.083]
[1724700623533,0.157227,63602.0,63601.0,0.4692]
[1724700623737,0.157223,63604.0,63601.0,0.4692]
[1724700623955,0.157226,63603.0,63601.0,0.4692]
[1724700624173,0.786137,63602.0,63601.0,0.4692]
[1724700624393,0.94231501,63602.0,63601.0,0.4692]
[1724700624867,0.15617801,63602.0,63601.0,0.4692]
[1724700625101,0.001,63605.0,63601.0,0.4692]
[1724700625417,0.314417,63610.0,63604.0,0.157222]
[1724700625667,0.157213,63608.0,63604.0,0.157222]
[1724700625950,0.15617801,63607.0,63602.0,0.233126]
[1724700626151,0.314392,63615.0,63602.0,0.0759]
[1724700626356,0.009,63605.0,63602.0,0.0759]
[1724700626563,0.314413,63611.0,63604.0,0.157222]
[1724700626770,0.157213,63608.0,63604.0,0.157222]
[1724700626979,0.163213,63608.0,63604.0,0.157222]
[1724700627196,0.006,63608.0,63605.0,0.157219]
[1724700627405,0.314392,63615.0,63607.0,0.157214]
[1724700627606,0.157201,63613.0,63605.0,0.456336]
[1724700627816,0.15617801,63612.0,63607.0,0.314428]
[1724700628023,0.15617801,63612.0,63611.0,0.157205]
[1724700628234,0.15617801,63612.0,63607.0,0.314428]
[1724700628458,0.15617801,63612.0,63609.0,0.157208]
[1724700628665,0.15617801,63612.0,63610.0,0.157207]
[1724700628868,0.15617801,63612.0,63608.0,0.157211]
[1724700629246,0.16317801,63612.0,63608.0,0.157211]
[1724700629456,0.16917801,63612.0,63608.0,0.157211]
[1724700629651,0.32638101,63612.0,63608.0,0.157211]
[1724700629898,0.31538101,63612.0,63608.0,0.157211]
[1724700630080,0.32638101,63612.0,63608.0,0.157211]
[1724700630409,0.31938101,63612.0,63608.0,0.157211]
[1724700630770,0.32638101,63612.0,63608.0,0.158211]
[1724700630979,0.16917801,63612.0,63608.0,0.001]
[1724700631196,0.018,63612.0,63611.0,0.471616]
[1724700631394,0.018,63612.0,63611.0,0.552316]
[1724700632161,0.011,63612.0,63611.0,0.237905]
[1724700632353,0.007,63612.0,63611.0,0.238905]
[1724700632801,0.018,63612.0,63611.0,0.238905]
[1724700633220,0.018,63612.0,63611.0,0.553316]
[1724700635312,0.018,63612.0,63611.0,0.0817]
[1724700635719,0.018,63612.0,63611.0,0.001]
[1724700635915,0.175203,63612.0,63611.0,0.001]
[1724700636535,0.64578701,63612.0,63611.0,0.001]
[1724700637414,0.33138101,63612.0,63611.0,0.001]
[1724700638007,0.17417801,63612.0,63611.0,0.001]
[1724700638238,0.018,63612.0,63611.0,0.787027]
[1724700638445,0.018,63612.0,63611.0,1.241638]
[1724700638693,0.018,63612.0,63611.0,0.927227]
[1724700639128,0.018,63612.0,63611.0,1.241638]
[1724700639583,0.007,63612.0,63611.0,1.241638]
[1724700639845,0.000825,63615.0,63614.0,0.78599]
[1724700640083,0.000825,63615.0,63614.0,0.157198]
[1724700640303,0.15700301,63615.0,63611.0,0.1402]
[1724700640483,0.003,63612.0,63611.0,0.391411]
[1724700641144,0.003,63612.0,63611.0,0.397411]
[1724700641344,0.003,63612.0,63611.0,0.554616]
[1724700641551,0.003,63612.0,63611.0,0.548616]
[1724700641727,0.003,63612.0,63611.0,0.551616]
[1724700641928,0.15617801,63614.0,63612.0,0.157202]
[1724700643585,0.15817801,63614.0,63612.0,0.157202]
[1724700643732,0.15817801,63614.0,63613.0,0.1572]
[1724700644139,0.15817801,63614.0,63612.0,0.001]
[1724700644349,0.15817801,63614.0,63613.0,0.1572]
[1724700644621,0.15817801,63614.0,63612.0,0.001]
[1724700644826,0.15817801,63614.0,63612.0,0.157202]
[1724700645029,0.15617801,63614.0,63613.0,0.001]
[1724700645241,0.15817801,63614.0,63613.0,0.1582]
[1724700645455,0.15817801,63614.0,63613.0,0.1572]
[1724700645659,0.15617801,63614.0,63612.0,0.157202]
[1724700645833,0.15817801,63614.0,63613.0,0.1572]
[1724700646269,0.15817801,63614.0,63610.0,0.0009075]
[1724700646473,0.16017801,63614.0,63611.0,0.157204]
[1724700646696,0.16017801,63614.0,63610.0,0.0009075]
[1724700646697,0.16017801,63614.0,63612.0,0.157201]
[1724700646903,0.16017801,63614.0,63612.0,0.158201]
[1724700647113,0.16017801,63614.0,63612.0,0.001]
[1724700647114,0.786002,63613.0,63612.0,0.001]
[1724700647324,0.157205,63611.0,63610.0,0.0009075]
[1724700647525,0.62779401,63611.0,63610.0,0.0009075]
[1724700648138,0.15617801,63611.0,63610.0,0.0009075]
[1724700648340,0.15617801,63611.0,63610.0,0.1581145]
[1724700648543,0.15617801,63611.0,63610.0,0.0019075]
[1724700649018,0.15817801,63611.0,63610.0,0.0019075]
[1724700651406,0.15817801,63611.0,63610.0,0.1591145]
[1724700652053,0.15817801,63611.0,63610.0,0.0019075]
[1724700652521,0.15817801,63611.0,63610.0,0.1591145]
[1724700652747,0.15817801,63611.0,63610.0,0.4735295]
[1724700652972,0.15817801,63611.0,63610.0,0.6111295]
[1724700653191,0.15817801,63611.0,63610.0,0.2967145]
[1724700654046,0.15817801,63611.0,63610.0,0.6111295]
[1724700659711,0.15817801,63611.0,63610.0,0.5496295]
[1724700659942,0.15817801,63611.0,63610.0,0.1591145]
[1724700660649,0.15817801,63611.0,63610.0,0.4735295]
[1724700661136,0.78700001,63611.0,63610.0,0.0019075]
[1724700661388,1.10690501,63611.0,63610.0,0.0019075]
[1724700661667,1.10690501,63611.0,63610.0,0.1591145]
[1724700661668,0.15817801,63611.0,63610.0,0.1591145]
[1724700661920,0.15817801,63611.0,63610.0,0.7879445]
[1724700662382,0.000825,63614.0,63613.0,0.471601]
[1724700662603,0.000825,63614.0,63613.0,1.178403]
[1724700662829,0.000825,63614.0,63613.0,1.241503]
[1724700663502,0.000825,63614.0,63613.0,1.555904]
[1724700663710,0.000825,63614.0,63613.0,1.244503]
[1724700665097,0.000825,63614.0,63613.0,1.344503]
[1724700665363,0.000825,63614.0,63613.0,1.50068101]
[1724700665638,0.000825,63614.0,63613.0,1.344503]
[1724700665906,0.000825,63614.0,63613.0,1.341503]
[1724700666399,0.001825,63614.0,63613.0,1.50868101]
[1724700666655,0.000825,63614.0,63613.0,1.82308201]
[1724700666922,0.000825,63614.0,63613.0,1.81208201]
[1724700667161,0.001825,63614.0,63613.0,1.81208201]
[1724700667412,0.001825,63614.0,63613.0,1.82308201]
[1724700667673,0.001825,63614.0,63613.0,1.82408201]
[1724700667975,0.001825,63614.0,63613.0,1.81308201]
[1724700668734,0.000825,63614.0,63613.0,1.49768101]
[1724700669481,0.001825,63614.0,63613.0,1.51168101]
[1724700669483,0.000825,63614.0,63613.0,1.51168101]
[1724700669735,0.001825,63614.0,63613.0,1.341503]
[1724700669996,0.000825,63614.0,63613.0,1.355503]
[1724700670488,0.001825,63614.0,63613.0,1.355503]
[1724700670747,0.000825,63614.0,63613.0,1.341503]
[1724700670959,0.000825,63614.0,63613.0,1.352503]
[1724700672691,0.001825,63614.0,63613.0,1.352503]
[1724700678430,0.001825,63614.0,63613.0,0.897002]
[1724700678668,0.001825,63614.0,63613.0,0.582601]
[1724700679164,0.001825,63614.0,63613.0,0.797002]
[1724700679909,0.000825,63614.0,63610.0,0.0009075]
[1724700680170,0.0663,63613.0,63610.0,0.1581145]
[1724700680456,0.866527,63611.0,63610.0,0.0009075]
[1724700680778,1.08270501,63611.0,63610.0,0.0009075]
[1724700680972,1.10570501,63611.0,63610.0,0.0009075]
[1724700681196,1.42011601,63611.0,63610.0,0.0009075]
[1724700681426,1.10570501,63611.0,63610.0,0.0009075]
[1724700681866,1.10570501,63611.0,63610.0,0.0099075]
[1724700682312,1.10570501,63611.0,63610.0,0.0009075]
[1724700682519,1.11270501,63611.0,63610.0,0.0019075]
[1724700683139,1.10570501,63611.0,63610.0,0.0009075]
[1724700683356,1.12670501,63611.0,63610.0,0.0019075]
[1724700683569,1.11270501,63611.0,63610.0,0.0019075]
[1724700683979,1.12270501,63611.0,63610.0,0.0019075]
[1724700684641,1.11570501,63611.0,63610.0,0.0009075]
[1724700684847,0.46388301,63611.0,63610.0,0.0009075]
[1724700685071,0.17217801,63611.0,63610.0,0.1591145]
[1724700685272,0.006,63611.0,63610.0,0.4735295]
[1724700685488,0.000825,63614.0,63613.0,0.1572]
[1724700685701,0.000825,63614.0,63613.0,0.471601]
[1724700685942,0.000825,63614.0,63613.0,1.100403]
[1724700686148,0.000825,63614.0,63613.0,0.786002]
[1724700686566,0.000825,63614.0,63613.0,1.100403]
[1724700686780,0.014825,63614.0,63613.0,1.100403]
[1724700687226,0.006825,63614.0,63613.0,1.100403]
[1724700687438,0.006825,63614.0,63613.0,1.177203]
[1724700688281,0.000825,63614.0,63613.0,1.177203]
[1724700688521,0.005825,63614.0,63613.0,1.177203]
[1724700688716,0.000825,63614.0,63613.0,1.177203]
[1724700688927,0.000825,63614.0,63613.0,1.50665679]
[1724700689129,0.001825,63614.0,63613.0,1.8258348]
[1724700689337,0.000825,63614.0,63613.0,1.8258348]
[1724700689546,0.000825,63614.0,63613.0,1.8168348]
[1724700689795,0.001825,63614.0,63613.0,1.8168348]
[1724700690007,0.000825,63614.0,63613.0,1.8318348]
[1724700690229,0.000825,63614.0,63613.0,1.83586667]
[1724700690447,0.000825,63615.0,63614.0,0.001]
[1724700690667,0.00063685,63631.0,63630.0,0.611275]
[1724700690880,0.00063685,63631.0,63630.0,1.82831318]
[1724700691088,0.00063685,63631.0,63630.0,1.92831318]
[1724700691496,0.00063685,63631.0,63630.0,1.339909]
[1724700692350,0.00163685,63631.0,63630.0,1.339909]
[1724700693296,0.00163685,63631.0,63630.0,1.353909]
[1724700694754,0.00163685,63631.0,63630.0,1.290909]
[1724700696603,0.00022685,63631.0,63630.0,1.290909]
[1724700696812,0.00022685,63631.0,63630.0,1.214109]
[1724700703943,0.00022685,63631.0,63630.0,1.289209]
[1724700704146,0.00105085,63631.0,63630.0,1.289209]
[1724700705025,0.00105085,63631.0,63630.0,0.585475]
[1724700705236,0.00105085,63631.0,63630.0,0.899792]
[1724700706110,0.06125085,63631.0,63630.0,0.014]
[1724700706338,0.06125085,63631.0,63630.0,0.171158]
[1724700706575,0.06125085,63631.0,63630.0,0.799792]
[1724700707230,0.06125085,63631.0,63630.0,0.485475]
[1724700708193,0.06125085,63631.0,63630.0,0.014]
[1724700708401,0.06125085,63631.0,63630.0,0.171158]
[1724700708646,0.06125085,63631.0,63630.0,0.014]
[1724700708903,0.29802886,63631.0,63630.0,0.014]
[1724700712258,0.00105085,63631.0,63630.0,0.799792]
[1724700712498,0.00105085,63631.0,63630.0,1.174709]
[1724700712679,0.00105085,63631.0,63630.0,1.489026]
[1724700713523,0.00105085,63631.0,63630.0,1.671226]
[1724700715169,0.00105085,63631.0,63630.0,1.67721178]
[1724700717206,0.00105085,63631.0,63630.0,1.67811818]
[1724700728365,0.00105085,63631.0,63630.0,1.30320118]
[1724700729172,0.00105085,63631.0,63630.0,1.22100118]
[1724700729374,0.00105085,63631.0,63630.0,0.9006984]
[1724700729587,0.00105085,63631.0,63630.0,1.2150154]
[1724700731150,0.00105085,63631.0,63630.0,0.9006984]
[1724700732611,0.07665085,63631.0,63630.0,0.0149064]
[1724700732829,0.07665085,63631.0,63630.0,0.1720644]
[1724700733659,0.076424,63631.0,63630.0,0.1580644]
[1724700733871,0.077424,63631.0,63630.0,0.1600644]
[1724700734536,0.077424,63631.0,63630.0,0.4743814]
[1724700735162,0.078424,63631.0,63630.0,0.4823814]
[1724700738902,0.078424,63631.0,63630.0,0.7966984]
[1724700740720,0.002824,63631.0,63630.0,0.7966984]
[1724700741143,0.002824,63631.0,63630.0,1.1110154]
[1724700742194,0.002824,63631.0,63630.0,1.77991958]
[1724700742423,0.002824,63631.0,63630.0,1.94051958]
[1724700743497,0.002824,63631.0,63630.0,2.09669759]
[1724700743710,0.002824,63631.0,63630.0,2.09769759]
[1724700743929,0.002824,63631.0,63630.0,2.28140603]
[1724700744160,0.002824,63631.0,63630.0,2.59572303]
[1724700744344,0.001824,63631.0,63630.0,2.58772303]
[1724700744548,0.001824,63631.0,63630.0,2.27340603]
[1724700744770,0.001824,63631.0,63630.0,2.35478339]
[1724700745274,0.001824,63631.0,63630.0,2.5984962]
[1724700745770,0.000824,63631.0,63630.0,2.5844962]
[1724700746236,0.002824,63631.0,63630.0,2.67709136]
[1724700746466,0.001824,63631.0,63630.0,2.66909136]
[1724700746979,0.001824,63631.0,63630.0,2.6064962]
[1724700746980,0.002824,63631.0,63630.0,2.6064962]
[1724700747233,0.002824,63631.0,63630.0,2.67708034]
[1724700747487,0.002824,63631.0,63630.0,2.6064962]
[1724700747739,0.002824,63631.0,63630.0,2.67706746]
[1724700747996,0.002824,63631.0,63630.0,2.42401459]
[1724700748239,0.002824,63631.0,63630.0,2.47106121]
[1724700748456,0.002824,63631.0,63630.0,2.15674421]
[1724700748712,0.002824,63631.0,63630.0,2.10869759]
[1724700752574,0.002824,63631.0,63630.0,1.95251958]
[1724700752835,0.002824,63631.0,63630.0,1.2035154]
[1724700753533,0.002824,63631.0,63630.0,1.1150154]
[1724700753767,0.02644804,63631.0,63630.0,1.1150154]
[1724700753982,0.02644804,63631.0,63630.0,1.2230154]
[1724700753983,0.02744804,63631.0,63630.0,1.2230154]
[1724700754203,0.02644804,63631.0,63630.0,1.2090154]
[1724700754671,0.02644804,63631.0,63630.0,1.2210154]
[1724700756539,0.02644804,63631.0,63630.0,1.22120426]
[1724700756754,0.10334804,63631.0,63630.0,0.80688726]
[1724700757015,0.16814804,63631.0,63630.0,0.1780644]
[1724700757850,0.16814804,63631.0,63630.0,0.1660644]
[1724700758066,0.16814804,63631.0,63630.0,0.48057026]
[1724700758277,0.16714804,63631.0,63630.0,0.47957026]
[1724700758514,0.16714804,63631.0,63630.0,0.17125326]
[1724700758725,0.16814804,63631.0,63630.0,0.17125326]
[1724700758936,0.16814804,63631.0,63630.0,0.1710644]
[1724700759179,0.32432605,63631.0,63630.0,0.0139064]
[1724700760307,0.32432605,63631.0,63630.0,0.0069064]
[1724700760516,0.32332605,63631.0,63630.0,0.1580644]
[1724700760752,0.32332605,63631.0,63630.0,0.4723814]
[1724700760983,0.16914804,63631.0,63630.0,0.78688726]
[1724700761206,0.16914804,63631.0,63630.0,0.4723814]
[1724700761427,0.02744804,63631.0,63630.0,0.78688726]
[1724700762317,0.02544804,63631.0,63630.0,0.7866984]
[1724700762528,0.02544804,63631.0,63630.0,0.78688726]
[1724700763613,0.02744804,63631.0,63630.0,0.79388726]
[1724700764233,0.02844804,63631.0,63630.0,0.79788726]
[1724700765098,0.02844804,63631.0,63630.0,0.7976984]
[1724700765301,0.02844804,63631.0,63630.0,0.79788726]
[1724700766960,0.02844804,63631.0,63630.0,0.7976984]
[1724700767168,0.02844804,63631.0,63630.0,0.79788726]
[1724700769463,0.10814804,63631.0,63630.0,0.4833814]
[1724700769711,0.16934804,63631.0,63630.0,0.48357026]
[1724700770776,0.16934804,63631.0,63630.0,0.4833814]
[1724700770988,0.16934804,63631.0,63630.0,0.48357026]
[1724700771206,0.16934804,63631.0,63630.0,0.16925326]
[1724700771413,0.16934804,63631.0,63630.0,0.4833814]
[1724700771834,0.16934804,63631.0,63630.0,0.48357026]
[1724700772013,0.08964804,63631.0,63630.0,0.79788726]
[1724700772417,0.02844804,63631.0,63630.0,0.79788726]
[1724700773220,0.02844804,63631.0,63630.0,0.7976984]
[1724700773423,0.02844804,63631.0,63630.0,0.79788726]
[1724700773599,0.02844804,63631.0,63630.0,1.11220426]
[1724700774182,0.02844804,63631.0,63630.0,1.1120154]
[1724700774390,0.02844804,63631.0,63630.0,1.11220426]
[1724700774820,0.02844804,63631.0,63630.0,1.57521666]
[1724700775037,0.02844804,63631.0,63630.0,1.83139467]
[1724700775246,0.02844804,63631.0,63630.0,2.14671167]
[1724700775459,0.02844804,63631.0,63630.0,2.19377009]
[1724700775655,0.02844804,63631.0,63630.0,2.19374509]
[1724700775889,0.02844804,63631.0,63630.0,2.18574509]
[1724700776115,0.02844804,63631.0,63630.0,2.19974509]
[1724700776321,0.02844804,63631.0,63630.0,2.15271167]
[1724700776727,0.02844804,63631.0,63630.0,2.13871167]
[1724700776923,0.02844804,63631.0,63630.0,2.15271167]
[1724700777190,0.02544804,63631.0,63630.0,2.14871167]
[1724700777588,0.02644804,63631.0,63630.0,2.15871167]
[1724700777965,0.02544804,63631.0,63630.0,2.19674509]
[1724700778184,0.02644804,63631.0,63630.0,2.19274509]
[1724700778417,0.001824,63631.0,63630.0,2.19274509]
[1724700778639,0.000824,63631.0,63630.0,2.18274509]
[1724700779253,0.000824,63631.0,63630.0,2.19674509]
[1724700779869,0.000824,63631.0,63630.0,2.19274509]
[1724700779870,0.001824,63631.0,63630.0,2.19274509]
[1724700780071,0.001824,63631.0,63630.0,2.20674509]
[1724700780321,0.001824,63631.0,63630.0,2.15971167]
[1724700780540,0.001824,63631.0,63630.0,2.14571167]
[1724700780745,0.000824,63631.0,63630.0,2.13571167]
[1724700780996,0.000824,63631.0,63630.0,2.14971167]
[1724700781223,0.001824,63631.0,63630.0,2.41047615]
[1724700781439,0.001824,63631.0,63630.0,2.40047615]
[1724700781639,0.001824,63631.0,63630.0,2.73838389]
[1724700781640,0.000824,63631.0,63630.0,2.73838389]
[1724700781852,0.02462138,63638.0,63637.0,1.552969]
[1724700782066,0.02462138,63638.0,63637.0,2.39751619]
[1724700782323,0.000825,63660.0,63637.0,2.39751619]
[1724700782324,0.000825,63660.0,63659.0,0.785432]
[1724700782767,0.000825,63660.0,63659.0,1.68786518]
[1724700782979,0.02544051,63660.0,63659.0,1.68786518]
[1724700783432,0.02544051,63660.0,63659.0,1.87066518]
[1724700784307,0.02544051,63660.0,63659.0,1.91948036]
[1724700784516,0.02544051,63660.0,63659.0,1.87066518]
[1724700784956,0.02544051,63660.0,63659.0,1.88466518]
[1724700785384,0.02644051,63660.0,63659.0,1.89466518]
[1724700785588,0.02644051,63660.0,63659.0,1.88466518]
[1724700785800,0.02644051,63660.0,63659.0,1.30233866]
[1724700786014,0.08994051,63660.0,63659.0,0.909432]
[1724700786219,0.08994051,63660.0,63659.0,0.895432]
[1724700786636,0.08994051,63660.0,63659.0,0.906432]
[1724700786841,0.08994051,63660.0,63659.0,0.806432]
[1724700787060,0.08994051,63660.0,63659.0,0.795432]
[1724700787283,0.08994051,63660.0,63659.0,0.785432]
[1724700787284,0.08794051,63660.0,63659.0,0.785432]
[1724700787484,0.08794051,63660.0,63659.0,0.802432]
[1724700787695,0.08894051,63660.0,63659.0,0.802432]
[1724700787906,0.08894051,63660.0,63659.0,0.785432]
[1724700788313,0.08894051,63660.0,63659.0,0.789432]